[Event "Live Chess"]
[Site "Chess.com"]
[Date "2023.05.21"]
[Round "-"]
[White "Pandreq"]
[Black "CeladonFish"]
[Result "1-0"]
[WhiteElo "1255"]
[BlackElo "1073"]
[TimeControl "300"]
[EndTime "0:02:12 PDT"]
[Termination "Pandreq won by checkmate"]

1. d4 {[%clk 0:04:58.6]} 1... Nf6 {[%clk 0:04:58.7]} 2. c4 {[%clk 0:04:57.5]}
2... g6 {[%clk 0:04:58]} 3. Nc3 {[%clk 0:04:56.8]} 3... Bg7 {[%clk 0:04:57.7]}
4. Bf4 {[%clk 0:04:55.1]} 4... d5 {[%clk 0:04:57]} 5. cxd5 {[%clk 0:04:54]} 5...
Nxd5 {[%clk 0:04:56.2]} 6. Nxd5 {[%clk 0:04:51.4]} 6... Qxd5 {[%clk 0:04:54.8]}
7. e3 {[%clk 0:04:50.5]} 7... Qa5+ {[%clk 0:04:51.8]} 8. Qd2 {[%clk 0:04:46.9]}
8... Qxd2+ {[%clk 0:04:46.3]} 9. Kxd2 {[%clk 0:04:46.8]} 9... Nc6 {[%clk
0:04:45.6]} 10. Bb5 {[%clk 0:04:41.5]} 10... Bd7 {[%clk 0:04:43.6]} 11. Bxc7
{[%clk 0:04:38]} 11... a6 {[%clk 0:04:42.3]} 12. Ba4 {[%clk 0:04:33.3]} 12...
O-O {[%clk 0:04:38.2]} 13. Nf3 {[%clk 0:04:27.9]} 13... Bf5 {[%clk 0:04:33.2]}
14. Bc2 {[%clk 0:04:23.6]} 14... Nb4 {[%clk 0:04:32.1]} 15. Bxf5 {[%clk
0:04:21.3]} 15... gxf5 {[%clk 0:04:30.9]} 16. Ba5 {[%clk 0:04:15.1]} 16... Nc6
{[%clk 0:04:27.9]} 17. Bc3 {[%clk 0:04:13.1]} 17... e6 {[%clk 0:04:26.5]} 18.
Rac1 {[%clk 0:04:10.1]} 18... Rac8 {[%clk 0:04:24.1]} 19. Kc2 {[%clk 0:04:06.8]}
19... Nb4+ {[%clk 0:04:17.2]} 20. Kb1 {[%clk 0:04:05.2]} 20... a5 {[%clk
0:03:59.4]} 21. Bxb4 {[%clk 0:04:00.8]} 21... axb4 {[%clk 0:03:58.1]} 22. Rxc8
{[%clk 0:03:56.2]} 22... Rxc8 {[%clk 0:03:57.1]} 23. Rc1 {[%clk 0:03:55.4]}
23... Rxc1+ {[%clk 0:03:55.4]} 24. Kxc1 {[%clk 0:03:54.3]} 24... Kf8 {[%clk
0:03:53]} 25. Kc2 {[%clk 0:03:52.3]} 25... Ke7 {[%clk 0:03:52.2]} 26. Kb3 {[%clk
0:03:51.5]} 26... Kd6 {[%clk 0:03:47]} 27. Kxb4 {[%clk 0:03:50.7]} 27... e5
{[%clk 0:03:45.9]} 28. a4 {[%clk 0:03:43.3]} 28... exd4 {[%clk 0:03:40.7]} 29.
Nxd4 {[%clk 0:03:39.7]} 29... Bxd4 {[%clk 0:03:39.1]} 30. exd4 {[%clk 0:03:39]}
30... Kd5 {[%clk 0:03:38.5]} 31. Kc3 {[%clk 0:03:37.9]} 31... b6 {[%clk
0:03:34.6]} 32. b4 {[%clk 0:03:36.6]} 32... f6 {[%clk 0:03:32.4]} 33. f3 {[%clk
0:03:32]} 33... h5 {[%clk 0:03:30.3]} 34. g3 {[%clk 0:03:30.3]} 34... Kc6 {[%clk
0:03:26.3]} 35. Kc4 {[%clk 0:03:28.5]} 35... Kd6 {[%clk 0:03:25.4]} 36. a5
{[%clk 0:03:25.4]} 36... bxa5 {[%clk 0:03:22.8]} 37. bxa5 {[%clk 0:03:24.6]}
37... Kc7 {[%clk 0:03:22.4]} 38. Kc5 {[%clk 0:03:22.5]} 38... Kb7 {[%clk
0:03:20.6]} 39. Kd6 {[%clk 0:03:19.8]} 39... Ka6 {[%clk 0:03:19.9]} 40. Ke6
{[%clk 0:03:18.8]} 40... Kxa5 {[%clk 0:03:19.6]} 41. Kxf6 {[%clk 0:03:18]} 41...
Kb5 {[%clk 0:03:18.2]} 42. Kxf5 {[%clk 0:03:16]} 42... Kc6 {[%clk 0:03:17.2]}
43. Ke6 {[%clk 0:03:14.3]} 43... Kc7 {[%clk 0:03:14.7]} 44. d5 {[%clk
0:03:09.7]} 44... Kd8 {[%clk 0:03:13.7]} 45. Kd6 {[%clk 0:03:08.8]} 45... Ke8
{[%clk 0:03:11.9]} 46. Kc7 {[%clk 0:03:07.8]} 46... Ke7 {[%clk 0:03:09.6]} 47.
d6+ {[%clk 0:03:07.7]} 47... Ke8 {[%clk 0:03:08.6]} 48. d7+ {[%clk 0:03:06.7]}
48... Kf7 {[%clk 0:03:08]} 49. d8=Q {[%clk 0:03:05.7]} 49... h4 {[%clk 0:03:07]}
50. Qxh4 {[%clk 0:03:03.6]} 50... Ke6 {[%clk 0:03:05.1]} 51. Qe4+ {[%clk
0:03:02.1]} 51... Kf6 {[%clk 0:03:03.5]} 52. Kd6 {[%clk 0:03:00.6]} 52... Kg7
{[%clk 0:03:02.4]} 53. Qf5 {[%clk 0:02:59.6]} 53... Kh6 {[%clk 0:03:00.4]} 54.
Qg4 {[%clk 0:02:57.3]} 54... Kh7 {[%clk 0:02:59.4]} 55. Ke7 {[%clk 0:02:56.4]}
55... Kh6 {[%clk 0:02:57.5]} 56. Kf7 {[%clk 0:02:56.3]} 56... Kh7 {[%clk
0:02:55.9]} 57. Qh5# {[%clk 0:02:55.7]} 1-0

[Event "Live Chess"]
[Site "Chess.com"]
[Date "2023.05.21"]
[Round "-"]
[White "minenko-1958"]
[Black "EdenHazard8"]
[Result "0-1"]
[WhiteElo "1475"]
[BlackElo "1964"]
[TimeControl "300"]
[EndTime "0:02:24 PDT"]
[Termination "EdenHazard8 won by resignation"]

1. e4 {[%clk 0:04:58.2]} 1... e5 {[%clk 0:04:58.8]} 2. Nf3 {[%clk 0:04:55.9]}
2... Nc6 {[%clk 0:04:58.7]} 3. c3 {[%clk 0:04:53.3]} 3... Nf6 {[%clk 0:04:56]}
4. d3 {[%clk 0:04:50.4]} 4... Bc5 {[%clk 0:04:53.9]} 5. h3 {[%clk 0:04:49.2]}
5... d6 {[%clk 0:04:52.6]} 6. Be2 {[%clk 0:04:47.9]} 6... O-O {[%clk 0:04:51.2]}
7. O-O {[%clk 0:04:46.5]} 7... h6 {[%clk 0:04:49.7]} 8. Nh2 {[%clk 0:04:44.8]}
8... Bb6 {[%clk 0:04:45.8]} 9. Be3 {[%clk 0:04:41.9]} 9... Be6 {[%clk
0:04:44.3]} 10. Bxb6 {[%clk 0:04:40.2]} 10... axb6 {[%clk 0:04:42.9]} 11. f4
{[%clk 0:04:38]} 11... Rxa2 {[%clk 0:04:40.4]} 12. Rxa2 {[%clk 0:04:35.6]} 12...
Bxa2 {[%clk 0:04:40.3]} 13. f5 {[%clk 0:04:32.7]} 13... Qa8 {[%clk 0:04:34.8]}
14. Na3 {[%clk 0:04:30.2]} 14... Na5 {[%clk 0:04:32.5]} 15. Qe1 {[%clk
0:04:16.3]} 15... Bb3 {[%clk 0:04:24.7]} 16. Qg3 {[%clk 0:04:08.7]} 16... Qa7
{[%clk 0:04:10.1]} 17. Ng4 {[%clk 0:04:06.7]} 17... Nxg4 {[%clk 0:04:07.9]} 18.
Qxg4 {[%clk 0:04:03.4]} 18... b5+ {[%clk 0:04:02.2]} 19. Kh1 {[%clk 0:03:57.8]}
19... c6 {[%clk 0:04:00.9]} 20. f6 {[%clk 0:03:55.7]} 20... g6 {[%clk
0:03:59.5]} 21. Qh4 {[%clk 0:03:47.9]} 21... Qe3 {[%clk 0:03:54.9]} 22. Qf2
{[%clk 0:03:35.8]} 22... Qxf2 {[%clk 0:03:52.6]} 23. Rxf2 {[%clk 0:03:34.3]}
23... Be6 {[%clk 0:03:51.1]} 24. g4 {[%clk 0:03:29.9]} 24... Nb3 {[%clk
0:03:48.8]} 25. h4 {[%clk 0:03:18.7]} 25... Nc1 {[%clk 0:03:42.2]} 26. g5 {[%clk
0:03:11.5]} 26... Nxe2 {[%clk 0:03:39.7]} 27. Rxe2 {[%clk 0:03:08]} 27... h5
{[%clk 0:03:32.4]} 28. Nc2 {[%clk 0:02:58]} 28... Ra8 {[%clk 0:03:28.9]} 29. Ne3
{[%clk 0:02:56.2]} 29... Ra1+ {[%clk 0:03:26.6]} 30. Kg2 {[%clk 0:02:54.9]}
30... Ra2 {[%clk 0:03:23.1]} 31. Kf2 {[%clk 0:02:52.2]} 31... b4 {[%clk
0:03:19.9]} 32. cxb4 {[%clk 0:02:44.7]} 32... Ra4 {[%clk 0:03:17.6]} 33. b5
{[%clk 0:02:41.1]} 33... cxb5 {[%clk 0:03:14.5]} 34. Rc2 {[%clk 0:02:38.6]}
34... Kf8 {[%clk 0:03:07.1]} 35. Nd5 {[%clk 0:02:33.7]} 35... Ke8 {[%clk
0:03:00.3]} 36. Nc7+ {[%clk 0:02:32.1]} 36... Kd7 {[%clk 0:02:58.5]} 37. Nxb5
{[%clk 0:02:29.3]} 37... Rb4 {[%clk 0:02:57.2]} 38. Rc7+ {[%clk 0:02:16.7]}
38... Kd8 {[%clk 0:02:55]} 39. Rxb7 {[%clk 0:02:14.1]} 39... Rxb2+ {[%clk
0:02:50.6]} 40. Ke3 {[%clk 0:02:12.4]} 40... d5 {[%clk 0:02:46.2]} 41. exd5
{[%clk 0:02:07]} 41... Bxd5 {[%clk 0:02:46.1]} 42. Rb8+ {[%clk 0:01:57.5]} 42...
Kd7 {[%clk 0:02:43.9]} 43. d4 {[%clk 0:01:49.9]} 43... Bc6 {[%clk 0:02:36.4]}
44. d5 {[%clk 0:01:44]} 44... Bxb5 {[%clk 0:02:33.1]} 45. Rb7+ {[%clk
0:01:42.3]} 45... Kd6 {[%clk 0:02:31.8]} 46. Rxf7 {[%clk 0:01:40.2]} 46... Kxd5
{[%clk 0:02:30.7]} 47. Rg7 {[%clk 0:01:38.7]} 47... Ke6 {[%clk 0:02:26.3]} 48.
Rxg6 {[%clk 0:01:35.5]} 48... Rb3+ {[%clk 0:02:25]} 49. Kd2 {[%clk 0:01:33.4]}
49... Rd3+ {[%clk 0:02:23.4]} 50. Kc2 {[%clk 0:01:30.3]} 50... Rf3 {[%clk
0:02:17.8]} 51. Rh6 {[%clk 0:01:28.6]} 51... Be8 {[%clk 0:02:13.3]} 52. Rh8
{[%clk 0:01:25.5]} 52... Bg6+ {[%clk 0:02:10.9]} 53. Kd2 {[%clk 0:01:22.6]}
53... e4 {[%clk 0:02:08.6]} 54. Ke2 {[%clk 0:01:19.8]} 54... Rf4 {[%clk
0:02:06.7]} 55. Rg8 {[%clk 0:01:16.9]} 55... Kf5 {[%clk 0:02:04.5]} 56. Ke3
{[%clk 0:01:13]} 56... Rxh4 {[%clk 0:02:03.1]} 57. Rg7 {[%clk 0:01:06.6]} 57...
Rh3+ {[%clk 0:02:01.1]} 58. Kf2 {[%clk 0:01:04.1]} 58... Kxg5 {[%clk 0:01:59.6]}
59. f7 {[%clk 0:01:01.1]} 59... Rf3+ {[%clk 0:01:58.3]} 60. Ke2 {[%clk 0:00:58]}
60... Rxf7 {[%clk 0:01:58.2]} 61. Rg8 {[%clk 0:00:53.6]} 61... h4 {[%clk
0:01:56.3]} 62. Ke3 {[%clk 0:00:50.6]} 62... h3 {[%clk 0:01:54.7]} 63. Rh8
{[%clk 0:00:49]} 63... Rf3+ {[%clk 0:01:53.5]} 64. Ke2 {[%clk 0:00:47.1]} 64...
Kg4 {[%clk 0:01:52]} 65. Rh6 {[%clk 0:00:44.6]} 65... Bf5 {[%clk 0:01:50]} 66.
Rh8 {[%clk 0:00:40.5]} 66... Kg3 {[%clk 0:01:48.7]} 67. Rg8+ {[%clk 0:00:37]}
67... Bg4 {[%clk 0:01:47.6]} 68. Rh8 {[%clk 0:00:34.3]} 68... h2 {[%clk
0:01:44.7]} 69. Ke1 {[%clk 0:00:30.8]} 69... Re3+ {[%clk 0:01:41.8]} 70. Kf1
{[%clk 0:00:29.1]} 70... Ra3 {[%clk 0:01:38.1]} 71. Ke1 {[%clk 0:00:12.1]} 71...
h1=Q+ {[%clk 0:01:35.1]} 72. Rxh1 {[%clk 0:00:10.3]} 72... Ra1+ {[%clk 0:01:35]}
73. Kd2 {[%clk 0:00:09]} 73... Rxh1 {[%clk 0:01:34.9]} 74. Ke3 {[%clk 0:00:08]}
74... Re1+ {[%clk 0:01:32.1]} 75. Kd4 {[%clk 0:00:06.7]} 75... Re2 {[%clk
0:01:32]} 0-1

[Event "Live Chess"]
[Site "Chess.com"]
[Date "2023.05.21"]
[Round "-"]
[White "BillythekidFellowes"]
[Black "Tushinskiy"]
[Result "1-0"]
[WhiteElo "2025"]
[BlackElo "2165"]
[TimeControl "300"]
[EndTime "0:02:25 PDT"]
[Termination "BillythekidFellowes won by resignation"]

1. e4 {[%clk 0:04:59.1]} 1... e5 {[%clk 0:04:58.8]} 2. Nf3 {[%clk 0:04:58.6]}
2... d6 {[%clk 0:04:57]} 3. Bc4 {[%clk 0:04:57.9]} 3... Bg4 {[%clk 0:04:52.4]}
4. d4 {[%clk 0:04:57]} 4... Nd7 {[%clk 0:04:50]} 5. dxe5 {[%clk 0:04:55.6]} 5...
dxe5 {[%clk 0:04:49.9]} 6. Qd5 {[%clk 0:04:54.6]} 6... Be6 {[%clk 0:04:48.5]} 7.
Qb5 {[%clk 0:04:53.6]} 7... Bxc4 {[%clk 0:04:48.4]} 8. Qxc4 {[%clk 0:04:53.5]}
8... c6 {[%clk 0:04:44.8]} 9. Nc3 {[%clk 0:04:52.8]} 9... Ngf6 {[%clk
0:04:41.1]} 10. Be3 {[%clk 0:04:51.9]} 10... Qc7 {[%clk 0:04:38.5]} 11. O-O-O
{[%clk 0:04:51.1]} 11... Qa5 {[%clk 0:04:30.2]} 12. Ng5 {[%clk 0:04:47.7]} 12...
O-O-O {[%clk 0:04:19.6]} 13. Nxf7 {[%clk 0:04:45.7]} 13... Be7 {[%clk
0:04:17.9]} 14. Nxh8 {[%clk 0:04:44.3]} 14... Rxh8 {[%clk 0:04:15.9]} 15. f3
{[%clk 0:04:43.7]} 15... Bb4 {[%clk 0:04:14.1]} 16. Rd3 {[%clk 0:04:40.1]} 16...
Nb6 {[%clk 0:04:09.6]} 17. Bxb6 {[%clk 0:04:38.7]} 17... axb6 {[%clk 0:04:07.6]}
18. Rhd1 {[%clk 0:04:36.3]} 18... Re8 {[%clk 0:04:04.6]} 19. Nd5 {[%clk
0:04:28.8]} 19... Nxd5 {[%clk 0:03:53.1]} 20. Rxd5 {[%clk 0:04:28.7]} 20... Bc5
{[%clk 0:03:51.7]} 21. Rd7 {[%clk 0:04:20.4]} 21... Rf8 {[%clk 0:03:39.6]} 22.
Qe6 {[%clk 0:04:14]} 22... Kb8 {[%clk 0:03:38.4]} 23. Rd8+ {[%clk 0:04:11.7]}
23... Rxd8 {[%clk 0:03:37.1]} 24. Rxd8+ {[%clk 0:04:11.6]} 24... Ka7 {[%clk
0:03:36.4]} 25. c3 {[%clk 0:04:07.3]} 25... b5 {[%clk 0:03:30]} 26. Qc8 {[%clk
0:03:52.5]} 26... Kb6 {[%clk 0:03:13]} 27. Rd7 {[%clk 0:03:49.6]} 27... Qa7
{[%clk 0:03:09.6]} 28. Qc7+ {[%clk 0:03:40.7]} 28... Ka6 {[%clk 0:03:08.6]} 29.
Qxe5 {[%clk 0:03:36.6]} 29... Bg1 {[%clk 0:03:02.3]} 30. a4 {[%clk 0:03:28]}
30... bxa4 {[%clk 0:02:55.5]} 31. Qe6 {[%clk 0:03:16.3]} 31... Qe3+ {[%clk
0:02:46.5]} 32. Kb1 {[%clk 0:03:13.7]} 32... Qe2 {[%clk 0:02:44.9]} 33. Ka2
{[%clk 0:02:41.3]} 33... Bc5 {[%clk 0:02:41.2]} 34. Rxg7 {[%clk 0:02:34.4]}
34... h5 {[%clk 0:02:30.3]} 35. Qf7 {[%clk 0:02:32]} 35... Qb5 {[%clk 0:02:24]}
36. g4 {[%clk 0:01:57]} 36... hxg4 {[%clk 0:02:15.9]} 37. fxg4 {[%clk
0:01:56.9]} 37... Be3 {[%clk 0:02:14.9]} 38. h4 {[%clk 0:01:34.8]} 38... Bc1
{[%clk 0:02:11.9]} 39. Qf2 {[%clk 0:01:30.3]} 39... Qc4+ {[%clk 0:01:58.6]} 40.
Kb1 {[%clk 0:01:27.3]} 40... Bh6 {[%clk 0:01:53]} 41. Re7 {[%clk 0:01:20.7]}
41... Qb3 {[%clk 0:01:34.2]} 42. Qe2+ {[%clk 0:01:13.4]} 42... Ka7 {[%clk
0:01:25.4]} 43. g5 {[%clk 0:01:08.3]} 43... Bf8 {[%clk 0:01:23.3]} 44. Rd7
{[%clk 0:01:04.5]} 44... a3 {[%clk 0:01:15.9]} 45. g6 {[%clk 0:00:43.9]} 45...
axb2 {[%clk 0:00:50.4]} 46. Qxb2 {[%clk 0:00:41.7]} 46... Qd1+ {[%clk
0:00:49.2]} 47. Rxd1 {[%clk 0:00:40.5]} 1-0

[Event "Live Chess"]
[Site "Chess.com"]
[Date "2023.05.21"]
[Round "-"]
[White "Ian-Morley"]
[Black "YichenLFC"]
[Result "1-0"]
[WhiteElo "1038"]
[BlackElo "826"]
[TimeControl "300"]
[EndTime "0:02:29 PDT"]
[Termination "Ian-Morley won by checkmate"]

1. e4 {[%clk 0:04:58.7]} 1... e5 {[%clk 0:04:56.7]} 2. d4 {[%clk 0:04:57.2]}
2... exd4 {[%clk 0:04:43]} 3. Qxd4 {[%clk 0:04:55.7]} 3... Nc6 {[%clk
0:04:41.4]} 4. Qd1 {[%clk 0:04:54.2]} 4... Nf6 {[%clk 0:04:38.5]} 5. Bb5 {[%clk
0:04:52.5]} 5... a6 {[%clk 0:04:32.8]} 6. Bxc6 {[%clk 0:04:51.7]} 6... dxc6
{[%clk 0:04:26.5]} 7. Qxd8+ {[%clk 0:04:50]} 7... Kxd8 {[%clk 0:04:23]} 8. Bg5
{[%clk 0:04:48.7]} 8... Be7 {[%clk 0:04:20.3]} 9. Bxf6 {[%clk 0:04:46.7]} 9...
Bxf6 {[%clk 0:04:18.4]} 10. c3 {[%clk 0:04:46]} 10... Be6 {[%clk 0:04:13.4]} 11.
Nd2 {[%clk 0:04:44.5]} 11... Re8 {[%clk 0:04:08.2]} 12. O-O-O {[%clk 0:04:43]}
12... Ke7 {[%clk 0:04:05.7]} 13. Ndf3 {[%clk 0:04:41.5]} 13... Kf8 {[%clk
0:04:04.2]} 14. e5 {[%clk 0:04:39.7]} 14... Bd8 {[%clk 0:03:56.5]} 15. h4 {[%clk
0:04:36.9]} 15... Bxa2 {[%clk 0:03:53.7]} 16. g4 {[%clk 0:04:32.4]} 16... Be7
{[%clk 0:03:39.9]} 17. Ne2 {[%clk 0:04:30.7]} 17... Bb3 {[%clk 0:03:35.6]} 18.
Rd2 {[%clk 0:04:28.9]} 18... Bd5 {[%clk 0:03:27.4]} 19. Rh3 {[%clk 0:03:52.8]}
19... Bxf3 {[%clk 0:03:13.7]} 20. Rxf3 {[%clk 0:03:47.3]} 20... Bxh4 {[%clk
0:03:10.6]} 21. Rd7 {[%clk 0:03:39.7]} 21... Bg5+ {[%clk 0:03:06.2]} 22. Kc2
{[%clk 0:03:25]} 22... f6 {[%clk 0:03:01.6]} 23. Rxc7 {[%clk 0:03:21.1]} 23...
Rxe5 {[%clk 0:02:56.4]} 24. Rd3 {[%clk 0:03:16.9]} 24... Rxe2+ {[%clk
0:02:49.4]} 25. Kb3 {[%clk 0:03:15.5]} 25... f5 {[%clk 0:02:38.9]} 26. Rdd7
{[%clk 0:03:06.5]} 26... Bf6 {[%clk 0:02:33.5]} 27. Rf7+ {[%clk 0:03:05]} 27...
Ke8 {[%clk 0:02:24.9]} 28. g5 {[%clk 0:03:01.4]} 28... Bxg5 {[%clk 0:02:19.4]}
29. Rxg7 {[%clk 0:02:58.7]} 29... Re4 {[%clk 0:02:14.9]} 30. Rg8# {[%clk
0:02:57.2]} 1-0

[Event "Live Chess"]
[Site "Chess.com"]
[Date "2023.05.21"]
[Round "-"]
[White "Singapourfeuj"]
[Black "pseudocyst"]
[Result "1-0"]
[WhiteElo "2224"]
[BlackElo "1917"]
[TimeControl "300"]
[EndTime "0:02:49 PDT"]
[Termination "Singapourfeuj won by resignation"]

1. d4 {[%clk 0:04:58.4]} 1... d5 {[%clk 0:04:58.7]} 2. Nf3 {[%clk 0:04:56.8]}
2... Nc6 {[%clk 0:04:58.3]} 3. c4 {[%clk 0:04:55.6]} 3... Bf5 {[%clk 0:04:57.7]}
4. cxd5 {[%clk 0:04:54.2]} 4... Qxd5 {[%clk 0:04:55.8]} 5. Nc3 {[%clk
0:04:53.1]} 5... Qd8 {[%clk 0:04:49.9]} 6. e4 {[%clk 0:04:51.3]} 6... Bg4 {[%clk
0:04:45.7]} 7. Be3 {[%clk 0:04:50.5]} 7... e5 {[%clk 0:04:43.6]} 8. d5 {[%clk
0:04:48.3]} 8... Nce7 {[%clk 0:04:42.8]} 9. Bb5+ {[%clk 0:04:43.3]} 9... c6
{[%clk 0:04:36.2]} 10. dxc6 {[%clk 0:04:42.3]} 10... bxc6 {[%clk 0:04:35.5]} 11.
Qxd8+ {[%clk 0:04:37.1]} 11... Rxd8 {[%clk 0:04:35.4]} 12. Ba4 {[%clk 0:04:36]}
12... Bxf3 {[%clk 0:04:34.2]} 13. gxf3 {[%clk 0:04:35.2]} 13... g6 {[%clk
0:04:31.2]} 14. Bxa7 {[%clk 0:04:33.6]} 1-0

[Event "Live Chess"]
[Site "Chess.com"]
[Date "2023.05.21"]
[Round "-"]
[White "matt1979"]
[Black "CroasArRheun"]
[Result "1-0"]
[WhiteElo "1534"]
[BlackElo "1810"]
[TimeControl "300"]
[EndTime "0:03:04 PDT"]
[Termination "matt1979 won on time"]

1. f4 {[%clk 0:04:58.3]} 1... d5 {[%clk 0:04:56.1]} 2. e3 {[%clk 0:04:56.9]}
2... Nh6 {[%clk 0:04:55.1]} 3. Nf3 {[%clk 0:04:55.7]} 3... Nf5 {[%clk
0:04:53.9]} 4. Be2 {[%clk 0:04:52.3]} 4... Nc6 {[%clk 0:04:52]} 5. O-O {[%clk
0:04:49.7]} 5... e6 {[%clk 0:04:50.5]} 6. b3 {[%clk 0:04:48.5]} 6... Bc5 {[%clk
0:04:48.8]} 7. d4 {[%clk 0:04:43.3]} 7... Bb6 {[%clk 0:04:47.8]} 8. a4 {[%clk
0:04:41.6]} 8... a5 {[%clk 0:04:42.4]} 9. c3 {[%clk 0:04:37]} 9... Bd7 {[%clk
0:04:40.3]} 10. Ba3 {[%clk 0:04:25.4]} 10... Nce7 {[%clk 0:04:34.5]} 11. Qd3
{[%clk 0:04:18.8]} 11... O-O {[%clk 0:04:32.5]} 12. g4 {[%clk 0:04:15.9]} 12...
Nd6 {[%clk 0:04:28.4]} 13. Ng5 {[%clk 0:04:04.1]} 13... Ng6 {[%clk 0:04:20.4]}
14. h4 {[%clk 0:03:51.5]} 14... h6 {[%clk 0:04:14]} 15. h5 {[%clk 0:03:46.8]}
15... hxg5 {[%clk 0:04:05.9]} 16. hxg6 {[%clk 0:03:45.6]} 16... fxg6 {[%clk
0:03:59.7]} 17. Qxg6 {[%clk 0:03:40.6]} 17... gxf4 {[%clk 0:03:57.8]} 18. Bd3
{[%clk 0:03:33.4]} 18... Ne4 {[%clk 0:03:50.6]} 19. Bxe4 {[%clk 0:03:32]} 19...
dxe4 {[%clk 0:03:48.6]} 20. Bxf8 {[%clk 0:03:30.2]} 20... Qxf8 {[%clk
0:03:30.1]} 21. Qxe4 {[%clk 0:03:23.2]} 21... c6 {[%clk 0:03:12.4]} 22. Rxf4
{[%clk 0:03:19.4]} 22... Qe7 {[%clk 0:03:05.5]} 23. Nd2 {[%clk 0:03:06.4]} 23...
Qh4 {[%clk 0:03:02.1]} 24. Qf3 {[%clk 0:03:02]} 24... Bc7 {[%clk 0:02:58.3]} 25.
Rf7 {[%clk 0:02:37.2]} 25... Qh2+ {[%clk 0:01:49.6]} 26. Kf1 {[%clk 0:02:31.7]}
26... Rd8 {[%clk 0:01:37.9]} 27. Ne4 {[%clk 0:02:25]} 27... e5 {[%clk
0:01:20.9]} 28. Ng3 {[%clk 0:02:00.4]} 28... Bxg4 {[%clk 0:00:48.5]} 29. Rxg7+
{[%clk 0:01:32.4]} 29... Kxg7 {[%clk 0:00:23.2]} 30. Qxg4+ {[%clk 0:01:31]}
30... Kf7 {[%clk 0:00:14.2]} 31. Qf5+ {[%clk 0:01:27.7]} 31... Ke7 {[%clk
0:00:13.1]} 32. Qg5+ {[%clk 0:01:21.9]} 32... Kd7 {[%clk 0:00:11.6]} 33. Qf5+
{[%clk 0:01:19.4]} 33... Ke7 {[%clk 0:00:10.3]} 34. Qg5+ {[%clk 0:01:14.9]}
34... Kd7 {[%clk 0:00:09.5]} 35. Qg7+ {[%clk 0:00:46.1]} 35... Ke6 {[%clk
0:00:07]} 36. d5+ {[%clk 0:00:36.2]} 36... cxd5 {[%clk 0:00:05.8]} 37. Qg6+
{[%clk 0:00:27.8]} 37... Kd7 {[%clk 0:00:04.8]} 38. Qf7+ {[%clk 0:00:24.6]}
38... Kc6 {[%clk 0:00:03.8]} 39. Qf6+ {[%clk 0:00:20.6]} 39... Bd6 {[%clk
0:00:03.2]} 40. Nf5 {[%clk 0:00:15.6]} 40... Qh1+ {[%clk 0:00:00.9]} 41. Ke2
{[%clk 0:00:14.5]} 41... Qxa1 {[%clk 0:00:00.7]} 42. Ne7+ {[%clk 0:00:11.6]} 1-0

[Event "Live Chess"]
[Site "Chess.com"]
[Date "2023.05.21"]
[Round "-"]
[White "Denz14"]
[Black "ProfPoisson"]
[Result "0-1"]
[WhiteElo "1031"]
[BlackElo "1189"]
[TimeControl "300"]
[EndTime "0:03:05 PDT"]
[Termination "ProfPoisson won by resignation"]

1. e4 {[%clk 0:04:57.8]} 1... e5 {[%clk 0:04:55.1]} 2. Nf3 {[%clk 0:04:56.4]}
2... Nf6 {[%clk 0:04:51.6]} 3. Nc3 {[%clk 0:04:52.7]} 3... Nc6 {[%clk
0:04:49.2]} 4. Bc4 {[%clk 0:04:49.7]} 4... Nxe4 {[%clk 0:04:44.7]} 5. Qe2 {[%clk
0:04:25.9]} 5... Nxc3 {[%clk 0:04:19.3]} 6. bxc3 {[%clk 0:04:22.3]} 6... Bd6
{[%clk 0:04:13.7]} 7. d4 {[%clk 0:04:17.4]} 7... O-O {[%clk 0:04:11.5]} 8. dxe5
{[%clk 0:04:16.2]} 8... Nxe5 {[%clk 0:04:07.6]} 9. Nxe5 {[%clk 0:04:14]} 9...
Bxe5 {[%clk 0:04:06.1]} 10. O-O {[%clk 0:04:07.6]} 10... Bxc3 {[%clk 0:04:03.2]}
11. Rb1 {[%clk 0:04:06.5]} 11... d5 {[%clk 0:03:56.6]} 12. Bd3 {[%clk
0:04:04.9]} 12... d4 {[%clk 0:03:51]} 13. Qh5 {[%clk 0:03:57.7]} 13... g6 {[%clk
0:03:38.6]} 14. Qc5 {[%clk 0:03:52.5]} 14... b6 {[%clk 0:03:27.4]} 15. Qe5
{[%clk 0:03:46.6]} 15... Re8 {[%clk 0:03:19.6]} 16. Qg3 {[%clk 0:03:44.9]} 16...
Qd6 {[%clk 0:03:13.6]} 17. Qh3 {[%clk 0:03:39]} 17... Bxh3 {[%clk 0:03:09.6]}
0-1